{"text_format":"3","workbook":"xlsx","n_sheets":2,"sheets":["岗位计划表","xlhide"],"not_rendered":{"defined_names":7},"read":"whole","date_system":"1900"}

{"sheet":"岗位计划表","index":0,"n_rows":71,"n_cols":25,"rows_kept":71,"merged":[[1,0,1,24]]}
["附件1"]
["大兴安岭地区2024年下半年事业单位公开招聘工作人员岗位计划表"]
["主管部门","事业单位","招录岗位","岗位代码","招录数量","所属大类","所属小类","事业单位代码","事业单位岗位代码","性别","岗位类别","岗位层级","招聘对象","报考学历","报考学位","门类","专业类","专业名称","其他条件","考试方式","笔试类别","最低服务年限","机构类别","经费形式","岗位条件咨询电话"]
["大兴安岭地区市场监督管理局","大兴安岭地区检验检测中心","检验员",{"$f":"H4&I4","v":"01300101"},1,"自然科学专技类C类","自然科学专技类","013001","01","不限","专业技术岗位","专业技术职称初级岗位","不限","大学本科（预备技师（技师）班）及以上","学士学位及以上","工学、理学","电气类、物理学类、电子信息类","电气工程及其自动化、电气工程与智能控制、物理学、应用物理学、系统科学与工程、电子信息工程",null,"笔试、面试","自然科学专技类（C类）",5,"公益一类","全额拨款","0457-2756519"]
["大兴安岭地区文体广电和旅游局","大兴安岭地区艺术剧院","舞蹈演员",{"$f":"H5&I5","v":"01300201"},1,"社会科学专技类B类","社会科学专技类","013002","01","男","专业技术岗位","专业技术职称初级岗位","不限","大学本科（预备技师（技师）班）及以上","学士学位及以上","艺术学","音乐与舞蹈学类","舞蹈学、舞蹈编导、舞蹈表演",null,"笔试、面试","社会科学专技类（B类）",5,"公益二类","差额拨款","0457-2756519"]
["大兴安岭技师学院","大兴安岭技师学院","专业课教师","01300301",1,"自然科学专技类C类","自然科学专技类","013003","01","不限","专业技术岗位","专业技术职称初级岗位","不限","大学本科（预备技师（技师）班）及以上","学士学位及以上","工学","计算机类","网络工程、网络与信息安全",null,"笔试、面试","自然科学专技类（C类）",5,"公益二类","全额拨款","0457-2756519"]
["大兴安岭技师学院","大兴安岭技师学院","专业课教师","01300302",1,"自然科学专技类C类","自然科学专技类","013003","02","不限","专业技术岗位","专业技术职称初级岗位","不限","大学本科（预备技师（技师）班）及以上","学士学位及以上","农学","林学类","林学、森林保护、经济林、园林",null,"笔试、面试","自然科学专技类（C类）",5,"公益二类","全额拨款","0457-2756519"]
["大兴安岭技师学院","大兴安岭技师学院","专业课教师","01300303",1,"自然科学专技类C类","自然科学专技类","013003","03","不限","专业技术岗位","专业技术职称初级岗位","不限","大学本科（预备技师（技师）班）及以上","学士学位及以上","农学","植物生产类","农学、植物保护、植物科学与技术",null,"笔试、面试","自然科学专技类（C类）",5,"公益二类","全额拨款","0457-2756519"]
["大兴安岭技师学院","大兴安岭技师学院","专业课教师","01300304",2,"自然科学专技类C类","自然科学专技类","013003","04","不限","专业技术岗位","专业技术职称初级岗位","不限","大学本科（预备技师（技师）班）及以上","学士学位及以上","工学","机械类","汽车服务工程、新能源汽车工程、机械工程、车辆工程",null,"笔试、面试","自然科学专技类（C类）",5,"公益二类","全额拨款","0457-2756519"]
["大兴安岭技师学院","大兴安岭技师学院","专业课教师","01300305",1,"自然科学专技类C类","自然科学专技类","013003","05","不限","专业技术岗位","专业技术职称初级岗位","不限","大学本科（预备技师（技师）班）及以上","学士学位及以上","工学","能源动力类","新能源科学与工程、能源与动力工程、能源与环境系统工程、储能科学与工程、能源服务工程、可持续能源、能源动力",null,"笔试、面试","自然科学专技类（C类）",5,"公益二类","全额拨款","0457-2756519"]
["大兴安岭技师学院","大兴安岭技师学院","专业课教师","01300306",1,"自然科学专技类C类","自然科学专技类","013003","06","不限","专业技术岗位","专业技术职称初级岗位","不限","大学本科（预备技师（技师）班）及以上","学士学位及以上","工学","电气类","电气工程及其自动化、智能电网信息工程、电气工程与智能控制、电机电器智能化、电缆工程、电气工程",null,"笔试、面试","自然科学专技类（C类）",5,"公益二类","全额拨款","0457-2756519"]
["大兴安岭职业学院","大兴安岭职业学院","教师","01300401",1,"社会科学专技类B类","社会科学专技类","013004","01","不限","专业技术岗位","专业技术职称初级岗位","不限","大学本科（预备技师（技师）班）及以上","学士学位及以上","经济学","金融学类","金融学",null,"笔试、面试","社会科学专技类（B类）",5,"公益二类","全额拨款","0457-2756519"]
["大兴安岭职业学院","大兴安岭职业学院","教师","01300402",1,"社会科学专技类B类","社会科学专技类","013004","02","不限","专业技术岗位","专业技术职称初级岗位","不限","大学本科（预备技师（技师）班）及以上","学士学位及以上","管理学","工商管理类","人力资源管理",null,"笔试、面试","社会科学专技类（B类）",5,"公益二类","全额拨款","0457-2756519"]
["大兴安岭地区机关事务管理局","大兴安岭地林直机关幼儿园","教师","01300501",1,"中小学教师类D类","小学教师岗位","013005","01","不限","专业技术岗位","专业技术职称初级岗位","不限","大学本科（预备技师（技师）班）及以上","学士学位及以上","教育学","教育学类","学前教育","具有幼儿园教师资格证","笔试、面试","小学教师岗位（D类）",5,"公益二类","差额拨款","0457-2756519"]
["大兴安岭地区教育局","大兴安岭地区中小学综合实践学校","教师","01300601",1,"中小学教师类D类","中学教师岗位","013006","01","不限","专业技术岗位","专业技术职称初级岗位","不限","大学本科（预备技师（技师）班）及以上","不限","工学","计算机类","计算机科学与技术、网络工程、物联网工程、电子与计算机工程","具有相应学科中学及以上教师资格证","笔试、面试","中学教师岗位（D类）",5,"公益一类","全额拨款","0457-2756519"]
["大兴安岭地区教育局","大兴安岭实验中学","政治教师","01300701",1,"中小学教师类D类","中学教师岗位","013007","01","不限","专业技术岗位","专业技术职称初级岗位","不限","大学本科（预备技师（技师）班）及以上","学士学位及以上","法学","马克思主义理论类     ","思想政治教育 ","具有相应学科高中教师资格证","笔试、面试","中学教师岗位（D类）",5,"公益二类","全额拨款","0457-2756519"]
["大兴安岭地区教育局","大兴安岭实验中学","化学教师","01300702",1,"中小学教师类D类","中学教师岗位","013007","02","不限","专业技术岗位","专业技术职称初级岗位","不限","大学本科（预备技师（技师）班）及以上","学士学位及以上","理学","化学类","化学、应用化学、学科教学（化学）","具有相应学科高中教师资格证","笔试、面试","中学教师岗位（D类）",5,"公益二类","全额拨款","0457-2756519"]
["大兴安岭地区教育局","大兴安岭实验中学","数学教师","01300703",1,"中小学教师类D类","中学教师岗位","013007","03","不限","专业技术岗位","专业技术职称初级岗位","不限","大学本科（预备技师（技师）班）及以上","学士学位及以上","理学"," 本科：数学\n 研究生：教育、数学","数学与应用数学、数学（师范类）、学科教学（数学）、数学教育、数学教育学、应用数学","具有相应学科高中教师资格证","笔试、面试","中学教师岗位（D类）",5,"公益二类","全额拨款","0457-2756519"]
["大兴安岭地区教育局","大兴安岭实验中学","物理教师","01300704",1,"中小学教师类D类","中学教师岗位","013007","04","不限","专业技术岗位","专业技术职称初级岗位","不限","大学本科（预备技师（技师）班）及以上","学士学位及以上","理学"," 本科：物理学\n 研究生：教育、物理学","物理学、应用物理学、物理（师范类）、学科教学（物理）、应用物理","具有相应学科高中教师资格证","笔试、面试","中学教师岗位（D类）",5,"公益二类","全额拨款","0457-2756519"]
["大兴安岭地区卫生健康委员会","大兴安岭地区人民医院","临床医生","01300801",5,"医疗卫生类E类","西医临床岗位","013008","01","不限","专业技术岗位","专业技术职称初级岗位","不限","大学本科（预备技师（技师）班）及以上","不限","医学","临床医学类","本科：临床医学 \n研究生：不限","具备执业医师资格","笔试、面试","西医临床岗位（E类）",5,"公益二类","差额拨款","0457-2756519"]
["大兴安岭地区卫生健康委员会","大兴安岭地区人民医院","口腔科医生","01300802",1,"医疗卫生类E类","西医临床岗位","013008","02","不限","专业技术岗位","专业技术职称初级岗位","不限","大学本科（预备技师（技师）班）及以上","不限","医学","口腔医学类","口腔医学","具备执业医师资格","笔试、面试","西医临床岗位（E类）",5,"公益二类","差额拨款","0457-2756519"]
["大兴安岭地区卫生健康委员会","大兴安岭地区人民医院","麻醉科医生","01300803",1,"医疗卫生类E类","西医临床岗位","013008","03","不限","专业技术岗位","专业技术职称初级岗位","不限","大学本科（预备技师（技师）班）及以上","不限","医学","临床医学类","麻醉学","具备执业医师资格","笔试、面试","西医临床岗位（E类）",5,"公益二类","差额拨款","0457-2756519"]
["大兴安岭地区卫生健康委员会","大兴安岭地区人民医院","急诊科医生","01300804",1,"医疗卫生类E类","西医临床岗位","013008","04","不限","专业技术岗位","专业技术职称初级岗位","不限","大学本科（预备技师（技师）班）及以上","学士学位及以上","医学","临床医学类","本科：临床医学 \n研究生：不限",null,"笔试、面试","西医临床岗位（E类）",5,"公益二类","差额拨款","0457-2756519"]
["大兴安岭地区卫生健康委员会","大兴安岭地区人民医院","儿科医生","01300805",1,"医疗卫生类E类","西医临床岗位","013008","05","不限","专业技术岗位","专业技术职称初级岗位","不限","大学本科（预备技师（技师）班）及以上","学士学位及以上","医学","临床医学类","本科：临床医学 \n研究生：不限",null,"笔试、面试","西医临床岗位（E类）",5,"公益二类","差额拨款","0457-2756519"]
["大兴安岭地区卫生健康委员会","大兴安岭地区中医医院\n（大兴安岭地区妇幼保健院）","临床医生","01300901",2,"医疗卫生类E类","中医临床岗位","013009","01","不限","专业技术岗位","专业技术职称初级岗位","不限","大学本科（预备技师（技师）班）及以上","不限","医学","中医学类、中西医结合类","中医学、中医儿科学、中医骨伤科学、中西医临床医学",null,"笔试、面试","中医临床岗位（E类）",5,"公益二类","差额拨款","0457-2756519"]
["大兴安岭地区卫生健康委员会","大兴安岭地区中医医院\n（大兴安岭地区妇幼保健院）","临床医生","01300902",2,"医疗卫生类E类","西医临床岗位","013009","02","不限","专业技术岗位","专业技术职称初级岗位","不限","大学本科（预备技师（技师）班）及以上","不限","医学","临床医学类","儿科学、临床医学、医学影像学、核医学、放射影像学","具备执业（助理）医师资格，具有两年及以上的二级及以上医疗机构相关工作经历","笔试、面试","西医临床岗位（E类）",5,"公益二类","差额拨款","0457-2756519"]
["大兴安岭地区卫生健康委员会","大兴安岭地区中医医院\n（大兴安岭地区妇幼保健院）","影像技师","01300903",1,"医疗卫生类E类","医学技术岗位","013009","03","不限","专业技术岗位","专业技术职称初级岗位","不限","大学本科（预备技师（技师）班）及以上","不限","医学","临床医学类","医学影像学、核医学、放射影像学","具有两年及以上的二级及以上医疗机构相关工作经历","笔试、面试","医学技术岗位（E类)",5,"公益二类","差额拨款","0457-2756519"]
["漠河市商务局","漠河市口岸服务中心","互市贸易\n管理员","01301001",1,"综合管理类A类","综合管理类","013010","01","不限","管理岗位","管理岗科员岗位","不限","大学本科（预备技师（技师）班）及以上","学士学位及以上","管理学","电子商务类","不限",null,"笔试、面试","综合管理类（A类）",5,"公益一类","全额拨款","0457-2885690"]
["漠河市教育局","漠河市高级中学","美术教师","01301101",1,"中小学教师类D类","中学教师岗位","013011","01","不限","专业技术岗位","专业技术职称初级岗位","不限","大学本科（预备技师（技师）班）及以上","学士学位及以上","艺术学","设计学类","不限",null,"笔试、面试","中学教师岗位（D类）",5,"公益二类","全额拨款","0457-2885690"]
["漠河市教育局","漠河市职业技术学校","兵教师","01301201",1,"中小学教师类D类","中学教师岗位","013012","01","不限","专业技术岗位","专业技术职称初级岗位","其他","大学本科（预备技师（技师）班）及以上","学士学位及以上","不限","不限","不限","退役士兵，具有中学教师资格证","笔试、面试","中学教师岗位（D类）",5,"公益二类","全额拨款","0457-2885690"]
["漠河市教育局","漠河市育才学校","兵教师","01301301",1,"中小学教师类D类","中学教师岗位","013013","01","不限","专业技术岗位","专业技术职称初级岗位","其他","大学本科（预备技师（技师）班）及以上","学士学位及以上","不限","不限","不限","退役士兵，具有中学教师资格证","笔试、面试","中学教师岗位（D类）",5,"公益二类","全额拨款","0457-2885690"]
["呼玛县市场监督管理局","呼玛县消费者权益保护中心","科员","01301401",1,"综合管理类A类","综合管理类","013014","01","不限","管理岗位","管理岗科员岗位","不限","大学本科（预备技师（技师）班）及以上","不限","工学","计算机类","计算机科学与技术、软件工程、网络工程",null,"笔试、面试","综合管理类（A类）",5,"公益一类","全额拨款","0457-3561016"]
["呼玛县林业和草原局","呼玛县三卡林场","技术员","01301501",1,"自然科学专技类C类","自然科学专技类","013015","01","不限","专业技术岗位","专业技术职称初级岗位","不限","大专（高级工班）及以上","不限","大专：电子与信息大类\n本科、研究生：工学"," 大专：通信类\n 本科：电子信息类\n 研究生：信息与通信工程","大专：现代移动通信技术、现代通信技术\n本科：通信工程\n研究生：不限",null,"笔试、面试","自然科学专技类（C类）",5,"公益一类","全额拨款","0457-3561016"]
["呼玛县林业和草原局","呼玛县嘎拉河林场","管理员","01301601",1,"综合管理类A类","综合管理类","013016","01","不限","管理岗位","管理岗科员岗位","不限","大专（高级工班）及以上","不限","大专：电子与信息大类\n本科、研究生：工学","计算机类","大专：计算机网络技术\n本科：计算机科学与技术\n研究生：不限",null,"笔试、面试","综合管理类（A类）",5,"公益一类","全额拨款","0457-3561016"]
["呼玛县教育局","呼玛县第一中学","兵教师","01301701",1,"中小学教师类D类","中学教师岗位","013017","01","不限","专业技术岗位","专业技术职称初级岗位","其他","大专（高级工班）及以上","不限","不限","不限","不限","退役士兵，具有中学教师资格证","笔试、面试","中学教师岗位（D类）",5,"公益二类","全额拨款","0457-3561016"]
["呼玛县卫生健康局","呼玛县疾病预防控制中心","检验员","01301801",1,"医疗卫生类E类","医学技术岗位","013018","01","不限","专业技术岗位","专业技术职称初级岗位","不限","大专（高级工班）及以上","不限","大专：医药卫生大类\n本科、研究生：医学","医学技术类","医学检验技术、医学技术",null,"笔试、面试","医学技术岗位（E类)",5,"公益一类","全额拨款","0457-3561016"]
["塔河县水务局","塔河县河湖保护中心","技术员",{"$f":"H37&I37","v":"01301901"},1,"自然科学专技类C类","自然科学专技类","013019","01","不限","专业技术岗位","专业技术职称初级岗位","不限","大专（高级工班）及以上","不限","  大专：水利大类\n  本科：工学、管理学\n  研究生：工学","大专：水利工程与管理类\n本科：水利类、管理科学与工程类\n研究生：水利工程、土木水利","大专：水利工程、水利水电工程技术、水利水电建筑工程\n本科：水利水电工程、水利科学与工程、水务工程、工程管理\n研究生：不限",null,"笔试、面试","自然科学专技类（C类）",5,"公益一类","全额拨款","0457-3620023"]
["加格达奇区市场监督管理局","加格达奇区食品药品检验检测中心","检验检测员","01302001",1,"自然科学专技类C类","自然科学专技类","013020","01","不限","专业技术岗位","专业技术职称初级岗位","不限","大学本科（预备技师（技师）班）及以上","学士学位及以上","工学","食品科学与工程类","本科：食品安全与检测\n研究生：不限",null,"笔试、面试","自然科学专技类（C类）",5,"公益一类","全额拨款","0457-6110203"]
["松岭区交通运输局","松岭区交通事业发展中心","科员","01302101",1,"综合管理类A类","综合管理类","013021","01","不限","管理岗位","管理岗科员岗位","不限","大学本科（预备技师（技师）班）及以上","不限","工学","交通运输类、土木类","交通运输、交通工程、道路桥梁与渡河工程、土木工程、交通运输工程、道路与交通工程",null,"笔试、面试","综合管理类（A类）",5,"公益一类","全额拨款","0457-3321122"]
["新林区财政局","新林区财政投资评审中心","科员","01302201",1,"综合管理类A类","综合管理类","013022","01","不限","管理岗位","管理岗科员岗位","不限","大学本科（预备技师（技师）班）及以上","学士学位及以上","经济学、管理学","经济学类、财政学类、金融学类、工商管理类、管理科学与工程类","经济学、财政学、金融学、会计学、工程造价 ",null,"笔试、面试","综合管理类（A类）",5,"公益一类","全额拨款","0457-3181079"]
["新林区应急管理局","新林区应急指挥保障中心","科员","01302301",1,"综合管理类A类","综合管理类","013023","01","不限","管理岗位","管理岗科员岗位","不限","大学本科（预备技师（技师）班）及以上","学士学位及以上","工学","矿业类","不限",null,"笔试、面试","综合管理类（A类）",5,"公益一类","全额拨款","0457-3181079"]
["新林区农业农村局","新林区水利工程建设保障中心","科员","01302401",1,"综合管理类A类","综合管理类","013024","01","不限","管理岗位","管理岗科员岗位","不限","大专（高级工班）及以上","不限","大专：土木建筑大类 \n本科、研究生：工学"," 大专：土建施工类\n 本科：水利类\n 研究生：水利工程","建筑工程技术、水务工程、水利工程",null,"笔试、面试","综合管理类（A类）",5,"公益一类","全额拨款","0457-3181079"]
["新林区卫生健康局","新林区人民医院","临床医生","01302501",2,"医疗卫生类E类","西医临床岗位","013025","01","不限","专业技术岗位","专业技术职称初级岗位","不限","大专（高级工班）及以上","不限","大专：医药卫生大类 \n本科、研究生：医学","临床医学类","临床医学",null,"笔试、面试","西医临床岗位（E类）",5,"公益二类","全额拨款","0457-3181079"]
["呼中区教育局","呼中区第一中学","初中地理教师","01302601",1,"中小学教师类D类","中学教师岗位","013026","01","不限","专业技术岗位","专业技术职称初级岗位","不限","大学本科（预备技师（技师）班）及以上","学士学位及以上","理学"," 本科： 地理科学类\n 研究生：地理学","不限","具有中学地理教师资格证","笔试、面试","中学教师岗位（D类）",5,"公益一类","全额拨款",13124575599]
["呼中区教育局","呼中区第一中学","初中物理教师","01302602",1,"中小学教师类D类","中学教师岗位","013026","02","不限","专业技术岗位","专业技术职称初级岗位","不限","大学本科（预备技师（技师）班）及以上","学士学位及以上","理学","物理学类","不限","具有中学物理教师资格证","笔试、面试","中学教师岗位（D类）",5,"公益一类","全额拨款",13124575599]
["呼中区卫生健康局","呼中区人民医院","临床医生","01302701",1,"医疗卫生类E类","西医临床岗位","013027","01","不限","专业技术岗位","专业技术职称初级岗位","不限","大专（高级工班）及以上","不限","大专：医药卫生大类\n本科、研究生：医学","临床医学"," 大专：临床医学\n 本科：临床医学、医学影像学\n 研究生：不限",null,"笔试、面试","西医临床岗位（E类）",5,"公益二类","全额拨款",13124575599]
["呼中区卫生健康局","呼中区人民医院","影像技师","01302702",1,"医疗卫生类E类","医学技术岗位","013027","02","不限","专业技术岗位","专业技术职称初级岗位","不限","大专（高级工班）及以上","不限","大专：医药卫生大类\n本科、研究生：医学","医学技术类","医学影像技术、医学技术",null,"笔试、面试","医学技术岗位（E类)",5,"公益二类","全额拨款",13124575599]
["漠河市北极镇人民政府","漠河市北极镇综合便民服务中心","职员（助力乡村振兴“万人计划”到村任职大学生）","01302801",1,"综合管理类A类","综合管理类","013028","01","不限","管理岗位","管理岗科员岗位","不限","大学本科（预备技师（技师）班）及以上","学士学位及以上","管理学","不限","不限","此岗位为万人计划岗位，需要到村（社区）任职，在村（社区）服务期限原则上不低于5年（含在乡镇、街道培养锻炼时间）","笔试、面试","综合管理类（A类）",5,"公益一类","全额拨款","0457-2887209"]
["漠河市北极镇人民政府","漠河市北极镇党群服务中心","职员（助力乡村振兴“万人计划”到村任职大学生）","01302901",1,"综合管理类A类","综合管理类","013029","01","不限","管理岗位","管理岗科员岗位","不限","大学本科（预备技师（技师）班）及以上","学士学位及以上","文学","中国语言文学类、新闻传播学类","不限","中共党员；此岗位为万人计划岗位，需要到村（社区）任职，在村（社区）服务期限原则上不低于5年（含在乡镇、街道培养锻炼时间）","笔试、面试","综合管理类（A类）",5,"公益一类","全额拨款","0457-2887209"]
["漠河市北极镇人民政府","漠河市北极镇经济发展服务中心","职员（助力乡村振兴“万人计划”到村任职大学生）","01303001",1,"综合管理类A类","综合管理类","013030","01","不限","管理岗位","管理岗科员岗位","不限","大学本科（预备技师（技师）班）及以上","学士学位及以上","农学","不限","不限","此岗位为万人计划岗位，需要到村（社区）任职，在村（社区）服务期限原则上不低于5年（含在乡镇、街道培养锻炼时间）","笔试、面试","综合管理类（A类）",5,"公益一类","全额拨款","0457-2887209"]
["呼玛县兴华乡人民政府","呼玛县兴华乡经济发展服务中心","职员（助力乡村振兴“万人计划”到村任职大学生）","01303101",1,"社会科学专技类B类","社会科学专技类","013031","01","不限","专业技术岗位","专业技术职称初级岗位","不限","大学本科（预备技师（技师）班）及以上","不限","管理学","工商管理类     ","会计学","此岗位为万人计划岗位，需要到村（社区）任职，在村（社区）服务期限原则上不低于5年（含在乡镇、街道培养锻炼时间）","笔试、面试","社会科学专技类（B类）",5,"公益一类","全额拨款","0457-3500112"]
["呼玛县韩家园镇人民政府","呼玛县韩家园镇经济发展服务中心","职员（助力乡村振兴“万人计划”到村任职大学生）","01303201",1,"社会科学专技类B类","社会科学专技类","013032","01","不限","专业技术岗位","专业技术职称初级岗位","不限","大学本科（预备技师（技师）班）及以上","不限","管理学","工商管理类","会计学","此岗位为万人计划岗位，需要到村（社区）任职，在村（社区）服务期限原则上不低于5年（含在乡镇、街道培养锻炼时间）","笔试、面试","社会科学专技类（B类）",5,"公益一类","全额拨款","0457-3500112"]
["呼玛县北疆乡人民政府","呼玛县北疆乡综合执法队","职员（助力乡村振兴“万人计划”到村任职大学生）","01303301",1,"综合管理类A类","综合管理类","013033","01","不限","管理岗位","管理岗科员岗位","不限","大学本科（预备技师（技师）班）及以上","不限","不限","不限","不限","此岗位为万人计划岗位，需要到村（社区）任职，在村（社区）服务期限原则上不低于5年（含在乡镇、街道培养锻炼时间）","笔试、面试","综合管理类（A类）",5,"公益一类","全额拨款","0457-3500112"]
["呼玛县呼玛镇人民政府","呼玛县呼玛镇党群服务中心","职员（助力乡村振兴“万人计划”到村任职大学生）","01303401",1,"综合管理类A类","综合管理类","013034","01","不限","管理岗位","管理岗科员岗位","不限","大学本科（预备技师（技师）班）及以上","不限","文学","中国语言文学类","汉语言文学、中国语言文学","此岗位为万人计划岗位，需要到村（社区）任职，在村（社区）服务期限原则上不低于5年（含在乡镇、街道培养锻炼时间）","笔试、面试","综合管理类（A类）",5,"公益一类","全额拨款","0457-3500112"]
["呼玛县三卡乡人民政府","呼玛县三卡乡党群服务中心","职员（助力乡村振兴“万人计划”到村任职大学生）","01303501",1,"综合管理类A类","综合管理类","013035","01","不限","管理岗位","管理岗科员岗位","其他","大学本科（预备技师（技师）班）及以上","不限","不限","不限","不限","退役士兵；此岗位为万人计划岗位，需要到村（社区）任职，在村（社区）服务期限原则上不低于5年（含在乡镇、街道培养锻炼时间）","笔试、面试","综合管理类（A类）",5,"公益一类","全额拨款","0457-3500112"]
["呼玛县鸥浦乡人民政府","呼玛县鸥浦乡社会治安综合治理中心","职员（助力乡村振兴“万人计划”到村任职大学生）","01303601",1,"综合管理类A类","综合管理类","013036","01","不限","管理岗位","管理岗科员岗位","不限","大学本科（预备技师（技师）班）及以上","不限","不限","不限","不限","此岗位为万人计划岗位，需要到村（社区）任职，在村（社区）服务期限原则上不低于5年（含在乡镇、街道培养锻炼时间）","笔试、面试","综合管理类（A类）",5,"公益一类","全额拨款","0457-3500112"]
["呼玛县金山乡人民政府","呼玛县金山乡社会治安综合治理中心","职员（助力乡村振兴“万人计划”到村任职大学生）","01303701",1,"综合管理类A类","综合管理类","013037","01","不限","管理岗位","管理岗科员岗位","不限","大学本科（预备技师（技师）班）及以上","不限","不限","不限","不限","此岗位为万人计划岗位，需要到村（社区）任职，在村（社区）服务期限原则上不低于5年（含在乡镇、街道培养锻炼时间）","笔试、面试","综合管理类（A类）",5,"公益一类","全额拨款","0457-3500112"]
["呼玛县白银纳乡人民政府","呼玛县白银纳乡经济发展服务中心","职员（助力乡村振兴“万人计划”到村任职大学生）","01303801",1,"社会科学专技类B类","社会科学专技类","013038","01","不限","专业技术岗位","专业技术职称初级岗位","不限","大学本科（预备技师（技师）班）及以上","不限","管理学","工商管理类","会计学","此岗位为万人计划岗位，需要到村（社区）任职，在村（社区）服务期限原则上不低于5年（含在乡镇、街道培养锻炼时间）","笔试、面试","社会科学专技类（B类）",5,"公益一类","全额拨款","0457-3500112"]
["松岭区劲松镇人民政府","松岭区劲松镇综合文化站","职员（助力乡村振兴“万人计划”到社区任职大学生）","01303901",1,"综合管理类A类","综合管理类","013039","01","不限","管理岗位","管理岗科员岗位","不限","大学本科（预备技师（技师）班）及以上","不限","不限","不限","不限","此岗位为万人计划岗位，需要到村（社区）任职，在村（社区）服务期限原则上不低于5年（含在乡镇、街道培养锻炼时间）","笔试、面试","综合管理类（A类）",5,"公益一类","全额拨款","0457-3321589"]
["松岭区小扬气镇人民政府","松岭区小扬气镇经济发展服务中心","职员（助力乡村振兴“万人计划”到社区任职大学生）","01304001",1,"综合管理类A类","综合管理类","013040","01","不限","管理岗位","管理岗科员岗位","不限","大学本科（预备技师（技师）班）及以上","不限","不限","不限","不限","此岗位为万人计划岗位，需要到村（社区）任职，在村（社区）服务期限原则上不低于5年（含在乡镇、街道培养锻炼时间）","笔试、面试","综合管理类（A类）",5,"公益一类","全额拨款","0457-3321589"]
["松岭区古源镇人民政府","松岭区古源镇经济发展服务中心","职员（助力乡村振兴“万人计划”到社区任职大学生）","01304101",1,"综合管理类A类","综合管理类","013041","01","不限","管理岗位","管理岗科员岗位","不限","大学本科（预备技师（技师）班）及以上","学士学位及以上","管理学","工商管理类","会计学","此岗位为万人计划岗位，需要到村（社区）任职，在村（社区）服务期限原则上不低于5年（含在乡镇、街道培养锻炼时间）","笔试、面试","综合管理类（A类）",5,"公益一类","全额拨款","0457-3321589"]
["新林区新林镇人民政府","新林区新林镇综合便民服务中心","职员（助力乡村振兴“万人计划”到社区任职大学生）","01304201",1,"综合管理类A类","综合管理类","013042","01","不限","管理岗位","管理岗科员岗位","不限","大学本科（预备技师（技师）班）及以上","不限","不限","不限","不限","此岗位为万人计划岗位，需要到村（社区）任职，在村（社区）服务期限原则上不低于5年（含在乡镇、街道培养锻炼时间）","笔试、面试","综合管理类（A类）",5,"公益一类","全额拨款","0457-3183372"]
["新林区新林镇人民政府","新林区新林镇党群服务中心","职员（助力乡村振兴“万人计划”到社区任职大学生）","01304301",1,"综合管理类A类","综合管理类","013043","01","不限","管理岗位","管理岗科员岗位","不限","大学本科（预备技师（技师）班）及以上","不限","不限","不限","不限","中共党员；此岗位为万人计划岗位，需要到村（社区）任职，在村（社区）服务期限原则上不低于5年（含在乡镇、街道培养锻炼时间）","笔试、面试","综合管理类（A类）",5,"公益一类","全额拨款","0457-3183372"]
["新林区塔尔根人民镇政府","新林区塔尔根镇党群服务中心","职员（助力乡村振兴“万人计划”到社区任职大学生）","01304401",1,"综合管理类A类","综合管理类","013044","01","不限","管理岗位","管理岗科员岗位","不限","大学本科（预备技师（技师）班）及以上","不限","不限","不限","不限","中共党员；此岗位为万人计划岗位，需要到村（社区）任职，在村（社区）服务期限原则上不低于5年（含在乡镇、街道培养锻炼时间）","笔试、面试","综合管理类（A类）",5,"公益一类","全额拨款","0457-3183372"]
["新林区塔源镇人民政府","新林区塔源镇党群服务中心","职员（助力乡村振兴“万人计划”到社区任职大学生）","01304501",1,"综合管理类A类","综合管理类","013045","01","不限","管理岗位","管理岗科员岗位","不限","大学本科（预备技师（技师）班）及以上","不限","不限","不限","不限","中共党员；此岗位为万人计划岗位，需要到村（社区）任职，在村（社区）服务期限原则上不低于5年（含在乡镇、街道培养锻炼时间）","笔试、面试","综合管理类（A类）",5,"公益一类","全额拨款","0457-3183372"]
["新林区翠岗镇人民政府","新林区翠岗镇综合便民服务中心","职员（助力乡村振兴“万人计划”到社区任职大学生）","01304601",1,"综合管理类A类","综合管理类","013046","01","不限","管理岗位","管理岗科员岗位","不限","大学本科（预备技师（技师）班）及以上","不限","不限","不限","不限","中共党员；此岗位为万人计划岗位，需要到村（社区）任职，在村（社区）服务期限原则上不低于5年（含在乡镇、街道培养锻炼时间）","笔试、面试","综合管理类（A类）",5,"公益一类","全额拨款","0457-3183372"]
["呼中区呼中镇人民政府","呼中区呼中镇党群服务中心","职员（助力乡村振兴“万人计划”到社区任职大学生）","01304701",1,"综合管理类A类","综合管理类","013047","01","不限","管理岗位","管理岗科员岗位","不限","大学本科（预备技师（技师）班）及以上","不限","不限","不限","不限","此岗位为万人计划岗位，需要到村（社区）任职，在村（社区）服务期限原则上不低于5年（含在乡镇、街道培养锻炼时间）","笔试、面试","综合管理类（A类）",5,"公益一类","全额拨款","0457-3434863"]
["呼中区呼中镇人民政府","呼中区呼中镇经济发展服务中心","职员（助力乡村振兴“万人计划”到社区任职大学生）","01304801",1,"综合管理类A类","综合管理类","013048","01","不限","管理岗位","管理岗科员岗位","不限","大学本科（预备技师（技师）班）及以上","不限","不限","不限","不限","此岗位为万人计划岗位，需要到村（社区）任职，在村（社区）服务期限原则上不低于5年（含在乡镇、街道培养锻炼时间）","笔试、面试","综合管理类（A类）",5,"公益一类","全额拨款","0457-3434863"]
["呼中区呼源镇人民政府","呼中区呼源镇党群服务中心","职员（助力乡村振兴“万人计划”到社区任职大学生）","01304901",1,"综合管理类A类","综合管理类","013049","01","不限","管理岗位","管理岗科员岗位","不限","大学本科（预备技师（技师）班）及以上","不限","不限","不限","不限","此岗位为万人计划岗位，需要到村（社区）任职，在村（社区）服务期限原则上不低于5年（含在乡镇、街道培养锻炼时间）","笔试、面试","综合管理类（A类）",5,"公益一类","全额拨款","0457-3434863"]
["呼中区碧水镇人民政府","呼中区碧水镇党群服务中心","职员（助力乡村振兴“万人计划”到社区任职大学生）","01305001",1,"综合管理类A类","综合管理类","013050","01","不限","管理岗位","管理岗科员岗位","不限","大学本科（预备技师（技师）班）及以上","不限","不限","不限","不限","此岗位为万人计划岗位，需要到村（社区）任职，在村（社区）服务期限原则上不低于5年（含在乡镇、街道培养锻炼时间）","笔试、面试","综合管理类（A类）",5,"公益一类","全额拨款","0457-3434863"]
["呼中区宏伟镇人民政府","呼中区宏伟镇社会治安综合治理中心","职员（助力乡村振兴“万人计划”到社区任职大学生）","01305101",1,"综合管理类A类","综合管理类","013051","01","不限","管理岗位","管理岗科员岗位","不限","大学本科（预备技师（技师）班）及以上","不限","不限","不限","不限","此岗位为万人计划岗位，需要到村（社区）任职，在村（社区）服务期限原则上不低于5年（含在乡镇、街道培养锻炼时间）","笔试、面试","综合管理类（A类）",5,"公益一类","全额拨款","0457-3434863"]

{"sheet":"xlhide","index":1,"n_rows":5,"n_cols":6,"rows_kept":5,"hidden":true}
["综合管理类"]
["社会科学专技类"]
["自然科学专技类"]
["小学教师岗位","中学教师岗位"]
["中医临床岗位","西医临床岗位","药剂岗位","护理岗位","医学技术岗位","公共卫生管理岗位"]